fUSD/lending_fUSD_20251217
["ID","MTS","AMOUNT","RATE_DAILY","PERIOD"]
[398870584,1765942255443,-500.0,0.0001529,2]
[398870585,1765942255454,-500.0,0.0001529,2]
[398870586,1765942255463,-500.0,0.0001529,2]
[398870587,1765942255473,-509.43273333,0.0001529,2]
[398870588,1765942255484,-371.0,0.00015681,2]
[398870589,1765942255494,-1028.52356266,0.00015713,2]
[398870590,1765942255506,-941.47643734,0.00015713,2]
[398870591,1765942255516,-2206.52356266,0.00017,2]
[398870592,1765942255572,-709.06115592,0.00017,2]
[398870593,1765942255637,-14218.90041072,0.00017,2]
[398870594,1765942255652,-420.22282652,0.00017,2]
[398870595,1765942255686,-422.88,0.00017,2]
[398870596,1765942255832,-4646.50902256,0.00017,2]
[398870597,1765942255843,-1057.83701526,0.00017,2]
[398870598,1765942255854,-1509.34266157,0.00017,2]
[398870599,1765942255865,-347.3546,0.00017,2]
[398870600,1765942255876,-298.07491948,0.00017,2]
[398870601,1765942255908,-682.7185601,0.00017,2]
[398870602,1765942255922,-135082.55191085,0.00017,2]
[398870603,1765942255933,-100519.45339771,0.00017,2]
[398870604,1765942255945,-43588.18872184,0.00017,2]
[398870605,1765942255955,-10276.89826205,0.00017,2]
[398870606,1765942255985,-431.69864103,0.00017,2]
[398870607,1765942255995,-2503.20420611,0.00017,2]
[398870612,1765942511372,163.0,0.00022,30]
[398870614,1765942729473,314.85644175,0.000145,3]
[398870615,1765943199494,-267.0,0.00014173,2]
[398870616,1765943199519,-191.95324736,0.00014173,2]
[398870617,1765943199540,-6569.79,0.00014202,2]
[398870618,1765943199564,-164.41429415,0.00014273,2]
[398870619,1765943199586,-500.41680687,0.00014273,2]
[398870620,1765943199607,-500.0,0.00014273,2]
[398870621,1765943199628,-500.0,0.00014273,2]
[398870622,1765943199649,-500.0,0.00014273,2]
[398870623,1765943199672,-500.0,0.00014273,2]
[398870624,1765943199694,-500.0,0.00014273,2]
[398870625,1765943199717,-500.0,0.00014273,2]
[398870626,1765943199740,-500.0,0.00014273,2]
[398870627,1765943199761,-500.0,0.00014273,2]
[398870628,1765943200143,-501.52504699,0.00014273,2]
[398870629,1765943200180,-500.0,0.00014273,2]
[398870630,1765943200203,-401.51810445,0.00014273,2]
[398870631,1765943200225,-500.0,0.00014273,2]
[398870632,1765943200246,-500.0,0.00014273,2]
[398870633,1765943200268,-500.0,0.00014273,2]
[398870634,1765943200289,-500.0,0.00014273,2]
[398870635,1765943200310,-500.0,0.00014273,2]
[398870636,1765943200331,-500.0,0.00014273,2]
[398870637,1765943200353,-500.0,0.00014273,2]
[398870638,1765943200374,-500.0,0.00014273,2]
[398870639,1765943200395,-212.80605568,0.00014273,2]
[398870640,1765943200416,-535.13473933,0.00014273,2]
[398870641,1765943200437,-150.0,0.00014289,2]
[398870642,1765943200459,-500.0,0.0001441,2]
[398870643,1765943200480,-220.62578383,0.00014508,2]
[398870644,1765943200504,-150.0,0.00014537,2]
[398870645,1765943200530,-8125.81592134,0.00014621,2]
[398870704,1765943432762,-151.71,0.00014273,2]
[398870705,1765943432773,-500.7810211,0.00014273,2]
[398870706,1765943432782,-500.0,0.00014273,2]
[398870707,1765943432793,-330.84186429,0.00014273,2]
[398870708,1765943432805,-169.15813571,0.00014273,2]
[398870709,1765943432815,-500.0,0.00014273,2]
[398870710,1765943432825,-500.0,0.00014273,2]
[398870711,1765943432835,-500.0,0.00014273,2]
[398870712,1765943432846,-500.0,0.00014273,2]
[398870713,1765943432861,-500.0,0.00014273,2]
[398870714,1765943432871,-500.0,0.00014273,2]
[398870715,1765943432881,-268.0,0.00014273,2]
[398870716,1765943432892,-905.9,0.00014382,2]
[398870717,1765943432902,-1200.0,0.0001462,2]
[398870718,1765943432911,-1746.66407866,0.00014621,2]
[398870719,1765943432921,-2705.845,0.00014621,2]
[398870720,1765943432930,-170.152,0.00014621,2]
[398870721,1765943432939,-411.13491346,0.00014819,2]
[398870722,1765943432972,-21.86508654,0.00014819,2]
[398870723,1765943432981,-300.0,0.0001482,2]
[398870724,1765943432991,-506.76381047,0.00014821,2]
[398870725,1765943433000,-1000.0,0.00014821,2]
[398870726,1765943433009,-1000.0,0.00014821,2]
[398870727,1765943433019,-1000.0,0.00014821,2]
[398870728,1765943433028,-943.81124044,0.00014821,2]
[398870729,1765943433038,-1000.0,0.00014821,2]
[398870730,1765943433047,-1000.0,0.00014821,2]
[398870731,1765943433057,-1000.0,0.00014821,2]
[398870732,1765943433066,-1000.0,0.00014821,2]
[398870733,1765943433075,-669.03641016,0.00014821,2]
[398870734,1765943433084,-1000.0,0.00014821,2]
[398870735,1765943433094,-1000.0,0.00014821,2]
[398870736,1765943433103,-191.95324736,0.00014973,2]
[398870737,1765943433112,-745.97487497,0.00014991,2]
[398870738,1765943433121,-1587.3538372,0.00014991,2]
[398870739,1765943433130,-300.0,0.00015048,2]
[398870740,1765943433139,-3507.98,0.00015049,2]
[398870741,1765943433148,-500.0,0.00015073,2]
[398870742,1765943433157,-500.0,0.00015073,2]
[398870743,1765943433167,-500.39420358,0.00015073,2]
[398870744,1765943433176,-247.02783238,0.00015073,2]
[398870745,1765943433185,-500.0,0.00015073,2]
[398870746,1765943433194,-500.0,0.00015073,2]
[398870747,1765943433203,-500.0,0.00015073,2]
[398870748,1765943433212,-500.0,0.00015073,2]
[398870749,1765943433221,-500.0,0.00015073,2]
[398870750,1765943433231,-500.0,0.00015073,2]
[398870751,1765943433241,-500.0,0.00015073,2]
[398870752,1765943433251,-501.92287076,0.00015073,2]
[398870753,1765943433260,-330.50430821,0.00015073,2]
[398870754,1765943433269,-160.48256856,0.00015073,2]
[398870755,1765943433279,-500.0,0.00015073,2]
[398870756,1765943433289,-500.0,0.00015073,2]
[398870757,1765943433298,-501.05916431,0.00015073,2]
[398870758,1765943433307,-518.47097409,0.00015073,2]
[398870759,1765943433317,-500.0,0.00015073,2]
[398870760,1765943433326,-509.17322542,0.00015073,2]
[398870761,1765943433334,-206.4937546,0.00015073,2]
[398870762,1765943433343,-500.0,0.00015073,2]
[398870763,1765943433352,-555.57058917,0.00015073,2]
[398870764,1765943433361,-334.35691357,0.00015073,2]
[398870765,1765943433370,-500.0,0.00015073,2]
[398870766,1765943433379,-500.0,0.00015073,2]
[398870767,1765943433389,-501.88878862,0.00015073,2]
[398870768,1765943433398,-401.140363,0.00015073,2]
[398870769,1765943433407,-156.4497429,0.00015073,2]
[398870770,1765943433416,-161.94692594,0.00015073,2]
[398870771,1765943433427,-500.0,0.00015073,2]
[398870772,1765943433436,-500.0,0.00015073,2]
[398870773,1765943433446,-500.0,0.00015073,2]
[398870774,1765943433456,-500.0,0.00015073,2]
[398870775,1765943433466,-500.0,0.00015073,2]
[398870776,1765943433475,-500.0,0.00015073,2]
[398870777,1765943433484,-500.0,0.00015073,2]
[398870778,1765943433493,-500.0,0.00015073,2]
[398870779,1765943433502,-500.0,0.00015073,2]
[398870780,1765943433511,-500.0,0.00015073,2]
[398870781,1765943433521,-500.0,0.00015073,2]
[398870782,1765943433530,-500.0,0.00015073,2]
[398870783,1765943433539,-160.00707255,0.00015073,2]
[398870784,1765943433549,-500.16803252,0.00015073,2]
[398870785,1765943433558,-500.0,0.00015073,2]
[398870786,1765943433568,-500.0,0.00015073,2]
[398870787,1765943433579,-500.0,0.00015073,2]
[398870788,1765943433588,-500.0,0.00015073,2]
[398870789,1765943433597,-500.0,0.00015073,2]
[398870790,1765943433606,-500.0,0.00015073,2]
[398870791,1765943433617,-166.81747592,0.00015073,2]
[398870792,1765943433626,-508.86859315,0.00015073,2]
[398870793,1765943433635,-207.36327491,0.00015073,2]
[398870794,1765943433647,-159.34246318,0.00015073,2]
[398870795,1765943433658,-374.17832264,0.00015073,2]
[398870796,1765943433667,-160.98868303,0.00015073,2]
[398870797,1765943433676,-500.0,0.00015073,2]
[398870798,1765943433685,-500.0,0.00015073,2]
[398870799,1765943433695,-328.9790277,0.00015073,2]
[398870800,1765943433704,-500.0,0.00015073,2]
[398870801,1765943433713,-500.0,0.00015073,2]
[398870802,1765943433722,-500.0,0.00015073,2]
[398870803,1765943433730,-500.0,0.00015073,2]
[398870804,1765943433739,-500.0,0.00015073,2]
[398870805,1765943433748,-500.0,0.00015073,2]
[398870806,1765943433757,-500.0,0.00015073,2]
[398870807,1765943433766,-500.0,0.00015073,2]
[398870808,1765943433775,-500.0,0.00015073,2]
[398870809,1765943433784,-500.0,0.00015073,2]
[398870810,1765943433793,-500.0,0.00015073,2]
[398870811,1765943433802,-500.0,0.00015073,2]
[398870812,1765943433811,-500.0,0.00015073,2]
[398870813,1765943433820,-500.0,0.00015073,2]
[398870814,1765943433831,-500.0,0.00015073,2]
[398870815,1765943433842,-500.0,0.00015073,2]
[398870816,1765943433852,-500.0,0.00015073,2]
[398870817,1765943433861,-468.28540761,0.00015073,2]
[398870818,1765943433870,-168.4730868,0.00015073,2]
[398870819,1765943433880,-522.71559969,0.00015073,2]
[398870820,1765943433889,-529.69147411,0.00015073,2]
[398870821,1765943433899,-165.46025712,0.00015073,2]
[398870822,1765943433908,-220.14255832,0.00015073,2]
[398870823,1765943433919,-163.60532616,0.00015073,2]
[398870824,1765943433928,-164.7287036,0.00015073,2]
[398870825,1765943433939,-161.52625205,0.00015073,2]
[398870826,1765943433949,-282.42468567,0.00015073,2]
[398870827,1765943433958,-482.74036839,0.00015073,2]
[398870828,1765943433967,-344.45569227,0.00015073,2]
[398870829,1765943433976,-505.92676777,0.00015073,2]
[398870830,1765943433986,-1118.77,0.00015073,2]
[398870831,1765943433995,-151.0,0.00015078,2]
[398870832,1765943434005,-1000.0,0.0001508,2]
[398870833,1765943434014,-500.0,0.0001508,2]
[398870834,1765943434023,-500.0,0.0001508,2]
[398870835,1765943434033,-500.0,0.0001508,2]
[398870836,1765943434042,-366.56115449,0.0001508,2]
[398870837,1765943434051,-11500.73828305,0.00015081,2]
[398870838,1765943434106,-701.62574342,0.00015081,2]
[398870839,1765943434178,-7432.8911826,0.00015081,2]
[398870840,1765943434189,-1364.71260208,0.00015081,2]
[398870865,1765943439174,-220.39324055,0.00014508,2]
[398870866,1765943439183,-421.72959988,0.00015081,2]
[398870867,1765943439213,-407.22196959,0.00015081,2]
[398870868,1765943439224,-305.96311241,0.00015081,2]
[398870869,1765943439256,-476.40016926,0.00015081,2]
[398870870,1765943439269,-1023.47056,0.00015081,2]
[398870871,1765943439320,-736365.24677771,0.00015081,2]
[398870872,1765943439329,-23235.1073,0.00015091,2]
[398870873,1765943439338,-235.8268,0.00015091,2]
[398870874,1765943439347,-34337.44973248,0.00015181,2]
[398870875,1765943439355,-800.0,0.00015181,2]
[398870876,1765943439366,-151.0,0.00015182,2]
[398870877,1765943439376,-151.0,0.00015182,2]
[398870878,1765943439386,-151.0,0.00015182,2]
[398870879,1765943439396,-151.0,0.00015182,2]
[398870880,1765943439407,-151.0,0.00015182,2]
[398870881,1765943439418,-151.0,0.00015182,2]
[398870882,1765943439427,-500.0,0.00015182,2]
[398870883,1765943439437,-151.0,0.00015182,2]
[398870884,1765943439449,-151.0,0.00015182,2]
[398870885,1765943439459,-151.0,0.00015182,2]
[398870886,1765943439468,-151.0,0.00015182,2]
[398870887,1765943439477,-151.0,0.00015182,2]
[398870888,1765943439486,-151.0,0.00015182,2]
[398870889,1765943439496,-151.0,0.00015182,2]
[398870890,1765943439505,-151.0,0.00015182,2]
[398870891,1765943439514,-200.0,0.00015182,2]
[398870892,1765943439523,-456.65864526,0.00015182,2]
[398870893,1765943439533,-151.0,0.00015182,2]
[398870894,1765943439542,-200.0,0.00015182,2]
[398870895,1765943439551,-151.0,0.00015182,2]
[398870896,1765943439559,-243.12910629,0.00015182,2]
[398870897,1765943439570,-500.0,0.00015182,2]
[398870898,1765943439581,-500.0,0.00015182,2]
[398870899,1765943439590,-500.0,0.00015182,2]
[398870900,1765943439599,-500.0,0.00015182,2]
[398870901,1765943439608,-500.0,0.00015182,2]
[398870902,1765943439618,-500.0,0.00015182,2]
[398870903,1765943439628,-500.0,0.00015182,2]
[398870904,1765943439637,-500.0,0.00015182,2]
[398870905,1765943439646,-500.0,0.00015182,2]
[398870906,1765943439655,-500.0,0.00015182,2]
[398870907,1765943439664,-500.0,0.00015182,2]
[398870908,1765943439673,-500.0,0.00015182,2]
[398870909,1765943439682,-500.0,0.00015182,2]
[398870910,1765943439691,-500.0,0.00015182,2]
[398870911,1765943439700,-500.0,0.00015182,2]
[398870912,1765943439709,-500.0,0.00015182,2]
[398870913,1765943439718,-500.0,0.00015182,2]
[398870914,1765943439728,-500.0,0.00015182,2]
[398870915,1765943439738,-500.0,0.00015182,2]
[398870916,1765943439747,-500.0,0.00015182,2]
[398870917,1765943439756,-500.0,0.00015182,2]
[398870918,1765943439765,-500.0,0.00015182,2]
[398870919,1765943439775,-500.0,0.00015182,2]
[398870920,1765943439784,-500.0,0.00015182,2]
[398870922,1765943439793,-200.0,0.00015182,2]
[398870924,1765943439801,-151.0,0.00015182,2]
[398870927,1765943439810,-151.0,0.00015182,2]
[398870930,1765943439819,-151.0,0.00015182,2]
[398870931,1765943439829,-151.0,0.00015182,2]
[398870932,1765943439839,-151.0,0.00015182,2]
[398870933,1765943439848,-151.0,0.00015182,2]
[398870934,1765943439857,-151.0,0.00015182,2]
[398870935,1765943439866,-151.0,0.00015182,2]
[398870936,1765943439875,-151.0,0.00015182,2]
[398870937,1765943439885,-151.0,0.00015182,2]
[398870938,1765943439895,-151.0,0.00015182,2]
[398870939,1765943439905,-151.0,0.00015182,2]
[398870940,1765943439914,-2500.0,0.00015191,2]
[398870941,1765943439923,-387.43780155,0.00015195,2]
[398870942,1765943439932,-8056.42,0.00015208,2]
[398870943,1765943439941,-34680.82954635,0.0001521,2]
[398870944,1765943439951,-1595.0,0.00015212,2]
[398870945,1765943439960,-151.0,0.00015277,2]
[398870946,1765943439968,-155361.98493077,0.0001528,2]
[398870947,1765943439977,-500.0,0.0001529,2]
[398870948,1765943439987,-500.0,0.0001529,2]
[398870949,1765943439995,-500.0,0.0001529,2]
[398870950,1765943440004,-500.0,0.0001529,2]
[398870951,1765943440014,-500.0,0.0001529,2]
[398870952,1765943440023,-500.0,0.0001529,2]
[398870953,1765943440032,-500.0,0.0001529,2]
[398870954,1765943440041,-500.0,0.0001529,2]
[398870955,1765943440050,-509.25948189,0.0001529,2]
[398870956,1765943440059,-9999.99,0.0001531,2]
[398870957,1765943440069,-999.99,0.0001531,2]
[398870958,1765943440078,-3804.02,0.0001531,2]
[398870959,1765943440088,-398.39,0.0001531,2]
[398870960,1765943440097,-650.82,0.0001531,2]
[398870961,1765943440106,-150.99,0.0001531,2]
[398870962,1765943440115,-1118.77,0.00015347,2]
[398870963,1765943440125,-1500.0,0.00015368,2]
[398870964,1765943440134,-500.0,0.00015368,2]
[398870965,1765943440142,-1500.0,0.00015368,2]
[398870966,1765943440152,-501.76123807,0.00015368,2]
[398870967,1765943440160,-1500.0,0.00015368,2]
[398870968,1765943440170,-1500.0,0.00015368,2]
[398870969,1765943440181,-6180.4875,0.00015391,2]
[398870970,1765943440190,-832.5962,0.00015391,2]
[398870971,1765943440200,-207.92024004,0.0001549,2]
[398870972,1765943440210,-500.0,0.0001549,2]
[398870973,1765943440220,-500.0,0.0001549,2]
[398870974,1765943440229,-500.0,0.0001549,2]
[398870975,1765943440238,-279.99666033,0.0001549,2]
[398870976,1765943440248,-500.0,0.0001549,2]
[398870977,1765943440257,-509.78781684,0.0001549,2]
[398870978,1765943440266,-510.6542677,0.0001549,2]
[398870979,1765943440275,-500.0,0.0001549,2]
[398870980,1765943440285,-500.0,0.0001549,2]
[398870981,1765943440297,-500.0,0.0001549,2]
[398870982,1765943440306,-500.0,0.0001549,2]
[398870983,1765943440316,-2372.64818563,0.00015507,2]
[398870985,1765943440325,-1037.66284815,0.00015524,2]
[398870987,1765943440335,-745.97487494,0.00015549,2]
[398870989,1765943440343,-227.82,0.00015586,2]
[398870991,1765943440352,-34337.44973248,0.00015594,2]
[398870993,1765943440361,-500.0,0.00015602,2]
[398870995,1765943440370,-500.0,0.00015602,2]
[398870997,1765943440379,-34680.82954633,0.0001562,2]
[398870999,1765943440389,-1141.43887054,0.00015621,2]
[398871001,1765943440398,-1000.0,0.00015621,2]
[398871003,1765943440407,-1000.0,0.00015621,2]
[398871005,1765943440416,-1000.0,0.00015621,2]
[398871006,1765943440424,-1000.0,0.00015621,2]
[398871008,1765943440433,-1000.0,0.00015621,2]
[398871010,1765943440442,-1000.0,0.00015621,2]
[398871012,1765943440451,-1000.0,0.00015621,2]
[398871014,1765943440460,-1000.0,0.00015621,2]
[398871016,1765943440469,-1000.0,0.00015621,2]
[398871018,1765943440478,-1000.0,0.00015621,2]
[398871020,1765943440487,-1000.0,0.00015621,2]
[398871022,1765943440496,-1000.0,0.00015621,2]
[398871024,1765943440505,-1000.0,0.00015621,2]
[398871026,1765943440514,-1000.0,0.00015621,2]
[398871028,1765943440523,-1000.0,0.00015621,2]
[398871030,1765943440533,-1000.0,0.00015621,2]
[398871032,1765943440542,-1000.0,0.00015621,2]
[398871034,1765943440551,-1000.0,0.00015621,2]
[398871036,1765943440560,-1000.0,0.00015621,2]
[398871038,1765943440571,-1000.0,0.00015621,2]
[398871040,1765943440580,-1000.0,0.00015621,2]
[398871042,1765943440589,-1000.0,0.00015621,2]
[398871044,1765943440598,-1008.38645187,0.00015621,2]
[398871046,1765943440608,-1000.0,0.00015621,2]
[398871048,1765943440618,-1000.0,0.00015621,2]
[398871050,1765943440627,-1000.0,0.00015621,2]
[398871052,1765943440637,-501.70973404,0.00015621,2]
[398871054,1765943440648,-1000.0,0.00015621,2]
[398871056,1765943440657,-999.2998737,0.00015621,2]
[398871058,1765943440666,-1000.0,0.00015621,2]
[398871060,1765943440675,-1000.0,0.00015621,2]
[398871062,1765943440684,-1000.0,0.00015621,2]
[398871063,1765943440692,-1000.0,0.00015621,2]
[398871064,1765943440701,-1000.0,0.00015621,2]
[398871065,1765943440711,-1118.77,0.00015621,2]
[398871066,1765943440720,-258.66,0.00015629,2]
[398871067,1765943440729,-366.83373706,0.00015668,2]
[398871068,1765943440739,-500.0,0.00015699,2]
[398871069,1765943440748,-250.0,0.000157,2]
[398871070,1765943440756,-248.54,0.00015716,2]
[398871071,1765943440765,-500.0,0.0001573,2]
[398871072,1765943440774,-200.0,0.0001573,2]
[398871073,1765943440783,-500.0,0.00015737,2]
[398871074,1765943440792,-1118.77,0.00015895,2]
[398871075,1765943440801,-3080.27403396,0.000159,2]
[398871076,1765943440810,-3080.27403395,0.000159,2]
[398871077,1765943440820,-3080.27403395,0.000159,2]
[398871078,1765943440829,-3080.27403395,0.000159,2]
[398871079,1765943440839,-2000.0,0.00015916,2]
[398871080,1765943440850,-1153.30692586,0.00015916,2]
[398871081,1765943440860,-2000.0,0.00015916,2]
[398871082,1765943440870,-1600.0,0.00015955,2]
[398871083,1765943440879,-160.94997743,0.00016,2]
[398871084,1765943440888,-34337.44973248,0.00016007,2]
[398871085,1765943440899,-34680.82954633,0.0001603,2]
[398871086,1765943440909,-2372.64818561,0.00016073,2]
[398871087,1765943440919,-250.0,0.00016082,2]
[398871088,1765943440929,-1680.0,0.00016082,2]
[398871089,1765943440938,-745.97487494,0.00016108,2]
[398871090,1765943440947,-500.0,0.00016168,2]
[398871091,1765943440957,-1118.77,0.00016168,2]
[398871092,1765943440966,-903.27599499,0.00016168,2]
[398871093,1765943440975,-348.7727522,0.00016168,2]
[398871094,1765943440984,-1500.0,0.00016168,2]
[398871095,1765943440994,-1500.0,0.00016168,2]
[398871096,1765943441003,-1500.0,0.00016168,2]
[398871097,1765943441012,-1120.05393732,0.00016168,2]
[398871098,1765943441021,-1584.76971831,0.00016168,2]
[398871099,1765943441030,-1500.0,0.00016168,2]
[398871100,1765943441040,-1500.0,0.00016168,2]
[398871101,1765943441049,-1510.48781112,0.00016168,2]
[398871102,1765943441059,-834.85585619,0.00016168,2]
[398871103,1765943441068,-1072.06327732,0.00016168,2]
[398871104,1765943441078,-991.33817562,0.00016168,2]
[398871105,1765943441087,-588.66689415,0.00016168,2]
[398871106,1765943441096,-340.19399092,0.00016168,2]
[398871107,1765943441106,-1500.0,0.00016168,2]
[398871108,1765943441116,-1500.0,0.00016168,2]
[398871109,1765943441126,-1500.0,0.00016168,2]
[398871110,1765943441135,-1509.20738875,0.00016168,2]
[398871111,1765943441144,-498.08794248,0.00016168,2]
[398871112,1765943441153,-1500.0,0.00016168,2]
[398871113,1765943441162,-1500.0,0.00016168,2]
[398871114,1765943441171,-500.0,0.00016168,2]
[398871115,1765943441180,-500.0,0.00016168,2]
[398871116,1765943441188,-500.0,0.00016168,2]
[398871117,1765943441197,-1500.0,0.00016168,2]
[398871118,1765943441206,-616.56298094,0.00016168,2]
[398871119,1765943441215,-1540.31828283,0.00016168,2]
[398871120,1765943441224,-1500.0,0.00016168,2]
[398871121,1765943441468,-754.07074293,0.00016168,2]
[398871122,1765943441545,-510.0,0.00016177,2]
[398871123,1765943441555,-420.0,0.00016222,2]
[398871124,1765943441564,-500.0,0.00016278,2]
[398871125,1765943441578,-200.0,0.00016278,2]
[398871126,1765943441587,-481.46730423,0.00016395,2]
[398871127,1765943441597,-434.36419309,0.00016399,2]
[398871128,1765943441607,-34337.44973248,0.00016421,2]
[398871129,1765943441618,-500.0,0.00016437,2]
[398871130,1765943441630,-500.0,0.00016437,2]
[398871131,1765943441640,-1000.0,0.00016438,2]
[398871132,1765943441655,-961.3562878,0.00016438,2]
[398871133,1765943441664,-500.0,0.00016438,2]
[398871134,1765943441674,-500.0,0.00016438,2]
[398871135,1765943441685,-500.0,0.00016438,2]
[398871136,1765943441694,-500.0,0.00016438,2]
[398871137,1765943441703,-150.0,0.00016438,2]
[398871138,1765943441715,-600.0,0.00016438,2]
[398871139,1765943441724,-5376.43,0.00016438,2]
[398871140,1765943441734,-712.0,0.00016438,2]
[398871141,1765943441743,-712.0,0.00016438,2]
[398871142,1765943441752,-34680.82954633,0.0001644,2]
[398871143,1765943441761,-1118.77,0.00016442,2]
[398871144,1765943441770,-2500.0,0.00016464,2]
[398871145,1765943441779,-2500.0,0.00016464,2]
[398871146,1765943441788,-2372.64818561,0.00016638,2]
[398871147,1765943441797,-745.97487494,0.00016666,2]
[398871148,1765943441806,-600.0,0.00016712,2]
[398871149,1765943441815,-164.0,0.00016712,2]
[398871150,1765943441824,-1118.77,0.00016716,2]
[398871151,1765943441833,-2022.13362004,0.00016716,2]
[398871152,1765943441843,-2000.0,0.00016716,2]
[398871153,1765943441852,-530.10800238,0.00016716,2]
[398871154,1765943441861,-487.452036,0.00016716,2]
[398871155,1765943441870,-2000.0,0.00016716,2]
[398871156,1765943441880,-1357.82620064,0.00016716,2]
[398871157,1765943441889,-2000.0,0.00016716,2]
[398871158,1765943441899,-511.12775583,0.00016716,2]
[398871159,1765943441908,-2000.0,0.00016716,2]
[398871160,1765943441917,-2000.0,0.00016716,2]
[398871161,1765943441926,-2000.0,0.00016716,2]
[398871162,1765943441936,-3156.3583205,0.00016788,2]
[398871163,1765943441945,-86635.9823577,0.00016788,2]
[398871164,1765943441955,-500.0,0.00016826,2]
[398871165,1765943441963,-200.0,0.00016826,2]
[398871166,1765943441972,-34337.44973248,0.00016834,2]
[398871167,1765943441981,-34680.82954633,0.0001685,2]
[398871168,1765943441991,-167.0,0.000169,2]
[398871169,1765943442000,-167.73,0.000169,2]
[398871170,1765943442011,-487.47228728,0.000169,2]
[398871171,1765943442021,-2130.12354651,0.000169,2]
[398871172,1765943442030,-219.63809582,0.000169,2]
[398871173,1765943442039,-151.0,0.00016983,2]
[398871174,1765943442048,-500.0,0.00016985,2]
[398871175,1765943442057,-500.0,0.00016985,2]
[398871176,1765943442066,-500.0,0.00016985,2]
[398871177,1765943442075,-500.0,0.00016985,2]
[398871178,1765943442084,-402.3215197,0.00016986,2]
[398871179,1765943442093,-5065.2677875,0.00016986,2]
[398871180,1765943442102,-189.5287261,0.00016986,2]
[398871181,1765943442111,-137752.2369073,0.00016986,2]
[398871182,1765943442120,-17398.844886,0.00016986,2]
[398871183,1765943442130,-745.3139984,0.00016986,2]
[398871184,1765943442139,-278179.7439373,0.00016986,2]
[398871185,1765943442148,-2697.7948945,0.00016986,2]
[398871186,1765943442157,-742.06,0.00016986,2]
[398871187,1765943442166,-390.999896,0.00016986,2]
[398871188,1765943442175,-390.999896,0.00016986,2]
[398871189,1765943442183,-390.999896,0.00016986,2]
[398871190,1765943442192,-151.0,0.00016986,2]
[398871191,1765943442201,-390.999896,0.00016986,2]
[398871192,1765943442210,-811.417131,0.00016986,2]
[398871193,1765943442219,-811.417131,0.00016986,2]
[398871194,1765943442228,-811.417131,0.00016986,2]
[398871195,1765943442237,-811.417131,0.00016986,2]
[398871196,1765943442247,-151.0,0.00016986,2]
[398871197,1765943442257,-151.0,0.00016986,2]
[398871198,1765943442267,-151.0,0.00016986,2]
[398871199,1765943442277,-151.0,0.00016986,2]
[398871200,1765943442286,-151.0,0.00016986,2]
[398871201,1765943442295,-600.0,0.00016986,2]
[398871202,1765943442304,-150.28381276,0.00016986,2]
[398871203,1765943442313,-366.83373706,0.0001699,2]
[398871204,1765943442322,-1118.77,0.0001699,2]
[398871205,1765943442331,-151.0,0.00016997,2]
[398871206,1765943442340,-160.70566298,0.00016999,2]
[398871207,1765943442349,-534.56287078,0.00016999,2]
[398871208,1765943442358,-500.0,0.00016999,2]
[398871209,1765943442367,-500.0,0.00016999,2]
[398871210,1765943442376,-500.0,0.00016999,2]
[398871211,1765943442385,-500.0,0.00016999,2]
[398871212,1765943442394,-500.0,0.00016999,2]
[398871213,1765943442403,-500.0,0.00016999,2]
[398871214,1765943442411,-500.0,0.00016999,2]
[398871215,1765943442421,-500.0,0.00016999,2]